[Event "*** Titled Tuesday Blitz"]
[Site "Chess.com"]
[Date "2021.03.02"]
[Round "5"]
[White "Rsnr"]
[Black "Berardino"]
[Result "1-0"]
[WhiteElo "2780"]
[BlackElo "2568"]
[TimeControl "180+1"]
[EndTime "10:55:35 PST"]
[Termination "Rsnr won by resignation"]

1. d4 {[%clk 0:03:00.9]} 1... Nf6 {[%clk 0:02:57.6]} 2. c4 {[%clk 0:03:00.7]}
2... c5 {[%clk 0:02:58.1]} 3. d5 {[%clk 0:03:01]} 3... e6 {[%clk 0:02:58.7]} 4.
Nc3 {[%clk 0:03:01.2]} 4... exd5 {[%clk 0:02:59.4]} 5. cxd5 {[%clk 0:03:02.1]}
5... d6 {[%clk 0:03:00.1]} 6. Nf3 {[%clk 0:03:02.8]} 6... g6 {[%clk 0:02:59.9]}
7. Bf4 {[%clk 0:03:03.5]} 7... a6 {[%clk 0:02:59.9]} 8. e4 {[%clk 0:03:03.1]}
8... Bg7 {[%clk 0:02:55]} 9. Qa4+ {[%clk 0:03:03.2]} 9... Bd7 {[%clk 0:02:53]}
10. Qb3 {[%clk 0:03:03.3]} 10... Bc8 {[%clk 0:02:42.3]} 11. a4 {[%clk
0:03:03.4]} 11... O-O {[%clk 0:02:42]} 12. Be2 {[%clk 0:03:04.1]} 12... Qe7
{[%clk 0:02:20.7]} 13. Nd2 {[%clk 0:03:03.4]} 13... Nbd7 {[%clk 0:02:20.8]} 14.
O-O {[%clk 0:03:01.3]} 14... Ne5 {[%clk 0:02:10.6]} 15. Bg3 {[%clk 0:03:00.4]}
15... Nh5 {[%clk 0:02:07.5]} 16. Bxh5 {[%clk 0:02:56.6]} 16... gxh5 {[%clk
0:02:08.4]} 17. h3 {[%clk 0:02:55.6]} 17... h4 {[%clk 0:02:02.8]} 18. Bh2 {[%clk
0:02:56]} 18... Bxh3 {[%clk 0:01:59]} 19. f4 {[%clk 0:02:56.7]} 19... Bxg2
{[%clk 0:01:41]} 20. Kxg2 {[%clk 0:02:57.6]} 20... Ng4 {[%clk 0:01:37.1]} 21.
Rae1 {[%clk 0:02:53.1]} 21... Bd4 {[%clk 0:01:28.4]} 22. Nd1 {[%clk 0:02:47.8]}
22... b5 {[%clk 0:01:22.4]} 23. Qh3 {[%clk 0:02:46.8]} 23... h5 {[%clk
0:01:19.8]} 24. Nf3 {[%clk 0:02:38.3]} 24... Bg7 {[%clk 0:01:18.3]} 25. Qxh4
{[%clk 0:02:37.6]} 25... Qxh4 {[%clk 0:01:17.4]} 26. Nxh4 {[%clk 0:02:38.5]}
26... bxa4 {[%clk 0:01:17.8]} 27. Nf5 {[%clk 0:02:38]} 27... Rab8 {[%clk
0:01:12.6]} 28. Re2 {[%clk 0:02:37.8]} 28... Rb6 {[%clk 0:01:11]} 29. Bg3 {[%clk
0:02:35.9]} 29... Rfb8 {[%clk 0:01:10.5]} 30. Rh1 {[%clk 0:02:21.9]} 30... Bxb2
{[%clk 0:01:06.8]} 31. Rxh5 {[%clk 0:02:10.3]} 31... a3 {[%clk 0:00:59.2]} 32.
Nde3 {[%clk 0:00:27]} 32... Nxe3+ {[%clk 0:00:47.6]} 33. Rxe3 {[%clk 0:00:27.9]}
33... a2 {[%clk 0:00:47.2]} 34. Rh1 {[%clk 0:00:28.7]} 34... c4 {[%clk
0:00:12.7]} 35. Ree1 {[%clk 0:00:21.4]} 35... c3 {[%clk 0:00:10.6]} 36. Nd4
{[%clk 0:00:21.8]} 36... Rb4 {[%clk 0:00:05]} 37. Nc2 {[%clk 0:00:21.6]} 37...
Ra4 {[%clk 0:00:04.7]} 38. Kf3 {[%clk 0:00:20.5]} 38... Rb3 {[%clk 0:00:04.1]}
39. e5 {[%clk 0:00:14.7]} 39... a1=Q {[%clk 0:00:04]} 40. Nxa1 {[%clk
0:00:14.8]} 40... c2+ {[%clk 0:00:03]} 41. Nxb3 {[%clk 0:00:14.7]} 41... Ra3
{[%clk 0:00:02.2]} 42. Re3 {[%clk 0:00:13.8]} 42... Rxb3 {[%clk 0:00:03.1]} 43.
Rxb3 {[%clk 0:00:14]} 1-0

[Event "*** Titled Tuesday Blitz"]
[Site "Chess.com"]
[Date "2021.03.02"]
[Round "5"]
[White "Rozhkov_V"]
[Black "wadsy27"]
[Result "1-0"]
[WhiteElo "2398"]
[BlackElo "2527"]
[TimeControl "180+1"]
[EndTime "10:55:35 PST"]
[Termination "Rozhkov_V won by resignation"]

1. e4 {[%clk 0:03:00.9]} 1... c5 {[%clk 0:02:59.3]} 2. Nf3 {[%clk 0:02:58.9]}
2... e6 {[%clk 0:02:57.9]} 3. d4 {[%clk 0:02:58.6]} 3... cxd4 {[%clk 0:02:58.6]}
4. Nxd4 {[%clk 0:02:59.1]} 4... Nc6 {[%clk 0:02:59.1]} 5. Nc3 {[%clk 0:02:59.6]}
5... Qc7 {[%clk 0:02:58.8]} 6. g3 {[%clk 0:02:57]} 6... a6 {[%clk 0:02:58.4]} 7.
Bg2 {[%clk 0:02:56.6]} 7... Nf6 {[%clk 0:02:57.5]} 8. O-O {[%clk 0:02:56.3]}
8... Nxd4 {[%clk 0:02:58.1]} 9. Qxd4 {[%clk 0:02:55.6]} 9... Bc5 {[%clk
0:02:58.8]} 10. Qd3 {[%clk 0:02:53.6]} 10... Ng4 {[%clk 0:02:58.2]} 11. Bf4
{[%clk 0:02:46.6]} 11... Ne5 {[%clk 0:02:57.5]} 12. Bxe5 {[%clk 0:02:46.6]}
12... Qxe5 {[%clk 0:02:56.7]} 13. Kh1 {[%clk 0:02:46]} 13... h5 {[%clk
0:02:52.4]} 14. f4 {[%clk 0:02:45.1]} 14... Qc7 {[%clk 0:02:52.6]} 15. e5 {[%clk
0:02:42.9]} 15... h4 {[%clk 0:02:48.9]} 16. g4 {[%clk 0:02:42.9]} 16... Ra7
{[%clk 0:02:42.3]} 17. Ne4 {[%clk 0:02:41.2]} 17... b5 {[%clk 0:02:41.6]} 18.
Qc3 {[%clk 0:02:00.2]} 18... Bb6 {[%clk 0:02:41.2]} 19. Nd6+ {[%clk 0:01:57]}
19... Ke7 {[%clk 0:02:41.4]} 20. Qd2 {[%clk 0:01:48.8]} 20... h3 {[%clk
0:02:33.9]} 21. Be4 {[%clk 0:01:45.6]} 21... Bc5 {[%clk 0:02:29.4]} 22. Rad1
{[%clk 0:01:34.8]} 22... Qb6 {[%clk 0:02:29.3]} 23. Nxc8+ {[%clk 0:01:22.5]}
23... Rxc8 {[%clk 0:02:28.1]} 24. f5 {[%clk 0:01:23.1]} 24... Be3 {[%clk
0:02:20.6]} 25. f6+ {[%clk 0:01:05.8]} 25... gxf6 {[%clk 0:02:16.7]} 26. exf6+
{[%clk 0:01:06.3]} 26... Ke8 {[%clk 0:02:09.1]} 27. Qe2 {[%clk 0:00:55.6]} 27...
Rac7 {[%clk 0:01:58.9]} 28. g5 {[%clk 0:00:50.7]} 28... d5 {[%clk 0:01:58.2]}
29. Qh5 {[%clk 0:00:42.5]} 29... Qd6 {[%clk 0:01:34.5]} 30. Bxd5 {[%clk
0:00:31.5]} 30... exd5 {[%clk 0:01:28.5]} 31. Rfe1 {[%clk 0:00:30.9]} 31... Rxc2
{[%clk 0:01:15.5]} 32. Rxe3+ {[%clk 0:00:30.3]} 32... Kd8 {[%clk 0:01:15.7]} 33.
Qxh3 {[%clk 0:00:21.6]} 33... Rc1 {[%clk 0:00:58.7]} 34. Rd3 {[%clk 0:00:21]}
34... Rxd1+ {[%clk 0:00:57.8]} 35. Rxd1 {[%clk 0:00:21.6]} 35... d4 {[%clk
0:00:35.7]} 36. Qf5 {[%clk 0:00:12.9]} 36... Rc5 {[%clk 0:00:32.7]} 37. Qe4
{[%clk 0:00:12]} 37... Rd5 {[%clk 0:00:22.3]} 38. g6 {[%clk 0:00:12.1]} 38...
fxg6 {[%clk 0:00:22.1]} 39. f7 {[%clk 0:00:12.3]} 39... d3 {[%clk 0:00:12.1]}
40. f8=Q+ {[%clk 0:00:10.9]} 40... Qxf8 {[%clk 0:00:12.1]} 41. Qxd5+ {[%clk
0:00:11.5]} 41... Kc7 {[%clk 0:00:12.4]} 42. Qxd3 {[%clk 0:00:10.5]} 42... Qa8+
{[%clk 0:00:11.6]} 43. Kg1 {[%clk 0:00:09.7]} 43... Qa7+ {[%clk 0:00:11.8]} 44.
Qd4 {[%clk 0:00:10]} 1-0

[Event "*** Titled Tuesday Blitz"]
[Site "Chess.com"]
[Date "2021.03.02"]
[Round "5"]
[White "lamomiablanca"]
[Black "AldokhinIvan"]
[Result "1-0"]
[WhiteElo "2360"]
[BlackElo "2511"]
[TimeControl "180+1"]
[EndTime "10:55:35 PST"]
[Termination "lamomiablanca won by checkmate"]

1. e4 {[%clk 0:03:00.9]} 1... c6 {[%clk 0:02:53.5]} 2. d4 {[%clk 0:03:00.1]}
2... d5 {[%clk 0:02:51.3]} 3. Nc3 {[%clk 0:02:59.8]} 3... dxe4 {[%clk 0:02:51]}
4. Nxe4 {[%clk 0:02:59]} 4... Nf6 {[%clk 0:02:51.9]} 5. Nxf6+ {[%clk 0:02:58.5]}
5... gxf6 {[%clk 0:02:52.8]} 6. c3 {[%clk 0:02:54.6]} 6... Nd7 {[%clk
0:02:53.7]} 7. Nf3 {[%clk 0:02:53.6]} 7... Nb6 {[%clk 0:02:50]} 8. g3 {[%clk
0:02:51.7]} 8... Bg4 {[%clk 0:02:42.4]} 9. Bg2 {[%clk 0:02:48.8]} 9... e6 {[%clk
0:02:42.4]} 10. a4 {[%clk 0:02:37]} 10... Bd6 {[%clk 0:02:40.1]} 11. a5 {[%clk
0:02:33.9]} 11... Nd5 {[%clk 0:02:36.6]} 12. a6 {[%clk 0:02:33.9]} 12... bxa6
{[%clk 0:02:24.4]} 13. Rxa6 {[%clk 0:02:25]} 13... Qc8 {[%clk 0:02:15.6]} 14.
Ra1 {[%clk 0:02:06.6]} 14... e5 {[%clk 0:02:07.4]} 15. h3 {[%clk 0:01:51.8]}
15... Bh5 {[%clk 0:02:03.7]} 16. dxe5 {[%clk 0:01:42.3]} 16... fxe5 {[%clk
0:02:01.2]} 17. g4 {[%clk 0:01:35.8]} 17... Bg6 {[%clk 0:02:00.5]} 18. Nh4
{[%clk 0:01:31.4]} 18... Qe6 {[%clk 0:01:43.7]} 19. O-O {[%clk 0:01:22.1]} 19...
O-O {[%clk 0:01:36.1]} 20. Qe2 {[%clk 0:01:15.3]} 20... Bc5 {[%clk 0:01:26.6]}
21. Be4 {[%clk 0:01:06.2]} 21... Nf6 {[%clk 0:01:09.5]} 22. Bf5 {[%clk
0:01:00.1]} 22... Qd6 {[%clk 0:00:46.8]} 23. Bg5 {[%clk 0:00:58.3]} 23... Nd5
{[%clk 0:00:43.3]} 24. Rad1 {[%clk 0:00:52.1]} 24... e4 {[%clk 0:00:43.4]} 25.
Qxe4 {[%clk 0:00:31]} 25... Rfe8 {[%clk 0:00:31.1]} 26. Qf3 {[%clk 0:00:29.6]}
26... Qe5 {[%clk 0:00:26.6]} 27. c4 {[%clk 0:00:19.8]} 27... Nb4 {[%clk
0:00:20]} 28. Bf4 {[%clk 0:00:19.4]} 28... Qxb2 {[%clk 0:00:19.2]} 29. Nxg6
{[%clk 0:00:17.4]} 29... hxg6 {[%clk 0:00:17.9]} 30. Bb1 {[%clk 0:00:17.8]}
30... Qf6 {[%clk 0:00:16.8]} 31. Qg3 {[%clk 0:00:16.6]} 31... g5 {[%clk
0:00:15.1]} 32. Bd2 {[%clk 0:00:14.4]} 32... Re2 {[%clk 0:00:13.6]} 33. Bc3
{[%clk 0:00:14.4]} 33... Qf4 {[%clk 0:00:04.6]} 34. Qxf4 {[%clk 0:00:14.1]}
34... gxf4 {[%clk 0:00:05]} 35. Rde1 {[%clk 0:00:14.1]} 35... Rae8 {[%clk
0:00:05.4]} 36. Rxe2 {[%clk 0:00:13.4]} 36... Rxe2 {[%clk 0:00:05.8]} 37. Kg2
{[%clk 0:00:13.3]} 37... a5 {[%clk 0:00:04.5]} 38. Kf3 {[%clk 0:00:13.4]} 38...
Re7 {[%clk 0:00:03.6]} 39. Kxf4 {[%clk 0:00:13.4]} 39... Rd7 {[%clk 0:00:03.9]}
40. Bf5 {[%clk 0:00:13.4]} 40... Rd6 {[%clk 0:00:02.4]} 41. Re1 {[%clk
0:00:13.2]} 41... a4 {[%clk 0:00:02.6]} 42. Re8# {[%clk 0:00:13]} 1-0

[Event "*** Titled Tuesday Blitz"]
[Site "Chess.com"]
[Date "2021.03.02"]
[Round "5"]
[White "guillembaches"]
[Black "Twitch_ElhamBlitz05"]
[Result "1-0"]
[WhiteElo "2477"]
[BlackElo "2793"]
[TimeControl "180+1"]
[EndTime "10:55:36 PST"]
[Termination "guillembaches won on time"]

1. e4 {[%clk 0:03:00.9]} 1... c6 {[%clk 0:02:58.3]} 2. d4 {[%clk 0:03:00.3]}
2... d5 {[%clk 0:02:59.2]} 3. exd5 {[%clk 0:03:01.1]} 3... cxd5 {[%clk
0:03:00.1]} 4. Bd3 {[%clk 0:03:01.6]} 4... Nf6 {[%clk 0:03:01]} 5. h3 {[%clk
0:03:01.1]} 5... g6 {[%clk 0:03:01.9]} 6. Nf3 {[%clk 0:03:00.3]} 6... Bg7 {[%clk
0:03:02.4]} 7. O-O {[%clk 0:03:00.6]} 7... O-O {[%clk 0:03:03.3]} 8. Bf4 {[%clk
0:03:00.3]} 8... Nc6 {[%clk 0:03:04.2]} 9. c3 {[%clk 0:03:00.4]} 9... Bf5 {[%clk
0:03:04.1]} 10. Be2 {[%clk 0:03:00.4]} 10... Rc8 {[%clk 0:03:03.8]} 11. Nbd2
{[%clk 0:03:00.3]} 11... a6 {[%clk 0:03:01.2]} 12. Re1 {[%clk 0:03:00]} 12...
Ne4 {[%clk 0:03:01.3]} 13. Nf1 {[%clk 0:02:56.7]} 13... Nd6 {[%clk 0:02:59.4]}
14. Ne3 {[%clk 0:02:53.4]} 14... e6 {[%clk 0:02:54.3]} 15. Rc1 {[%clk
0:02:43.7]} 15... b5 {[%clk 0:02:49.9]} 16. a4 {[%clk 0:02:31.1]} 16... Nc4
{[%clk 0:02:46]} 17. axb5 {[%clk 0:02:23.7]} 17... axb5 {[%clk 0:02:42.3]} 18.
Nxf5 {[%clk 0:02:17.2]} 18... gxf5 {[%clk 0:02:41.4]} 19. b3 {[%clk 0:02:12.7]}
19... Nd6 {[%clk 0:02:11.8]} 20. Bxd6 {[%clk 0:02:01.3]} 20... Qxd6 {[%clk
0:02:12.7]} 21. Bxb5 {[%clk 0:02:01.1]} 21... Bf6 {[%clk 0:02:13]} 22. Bxc6
{[%clk 0:01:53.6]} 22... Rxc6 {[%clk 0:02:13.9]} 23. Ne5 {[%clk 0:01:53]} 23...
Rc7 {[%clk 0:02:09.5]} 24. Re3 {[%clk 0:01:39]} 24... Rfc8 {[%clk 0:01:41]} 25.
Qh5 {[%clk 0:01:33.7]} 25... Kf8 {[%clk 0:01:18.1]} 26. Qxh7 {[%clk 0:01:22.5]}
26... f4 {[%clk 0:01:16]} 27. Qh6+ {[%clk 0:01:15.8]} 27... Ke7 {[%clk
0:01:00.4]} 28. Qxf4 {[%clk 0:01:15.7]} 28... Bxe5 {[%clk 0:00:51.5]} 29. dxe5
{[%clk 0:01:11.1]} 29... Qa3 {[%clk 0:00:40.7]} 30. Rf3 {[%clk 0:01:00.6]} 30...
Ke8 {[%clk 0:00:37.3]} 31. c4 {[%clk 0:00:54.5]} 31... d4 {[%clk 0:00:18.3]} 32.
Rd1 {[%clk 0:00:49.3]} 32... Rd8 {[%clk 0:00:17]} 33. h4 {[%clk 0:00:45.3]}
33... Qb2 {[%clk 0:00:12.9]} 34. Rfd3 {[%clk 0:00:41.4]} 34... Rcd7 {[%clk
0:00:07.3]} 35. h5 {[%clk 0:00:41.5]} 35... Qe2 {[%clk 0:00:04.6]} 36. Qg5
{[%clk 0:00:30.9]} 36... Ra7 {[%clk 0:00:02.1]} 37. h6 {[%clk 0:00:28.7]} 37...
Ra2 {[%clk 0:00:02]} 38. R3d2 {[%clk 0:00:20.5]} 38... Rxd2 {[%clk 0:00:01.6]}
39. Qxd2 {[%clk 0:00:20.5]} 39... Qh5 {[%clk 0:00:01.9]} 40. c5 {[%clk
0:00:19.8]} 40... d3 {[%clk 0:00:02]} 41. c6 {[%clk 0:00:19.9]} 41... Qxe5
{[%clk 0:00:02.1]} 42. h7 {[%clk 0:00:17.8]} 42... Ke7 {[%clk 0:00:02.1]} 43. b4
{[%clk 0:00:16.7]} 43... Qe2 {[%clk 0:00:01.2]} 44. b5 {[%clk 0:00:16]} 1-0

[Event "*** Titled Tuesday Blitz"]
[Site "Chess.com"]
[Date "2021.03.02"]
[Round "5"]
[White "Witik"]
[Black "serhanberat_ozdemir"]
[Result "1-0"]
[WhiteElo "2718"]
[BlackElo "2534"]
[TimeControl "180+1"]
[EndTime "10:55:37 PST"]
[Termination "Witik won on time"]

1. e4 {[%clk 0:03:00.9]} 1... c5 {[%clk 0:02:59.4]} 2. Nf3 {[%clk 0:03:00.3]}
2... e6 {[%clk 0:02:59.6]} 3. d4 {[%clk 0:03:00.3]} 3... cxd4 {[%clk 0:03:00.2]}
4. Nxd4 {[%clk 0:03:01.2]} 4... a6 {[%clk 0:03:00.6]} 5. c4 {[%clk 0:03:01.2]}
5... Nf6 {[%clk 0:03:00.3]} 6. Nc3 {[%clk 0:03:01.5]} 6... Qc7 {[%clk
0:03:00.9]} 7. a3 {[%clk 0:03:01.5]} 7... b6 {[%clk 0:03:00.7]} 8. Be2 {[%clk
0:03:01.6]} 8... Bb7 {[%clk 0:03:01.2]} 9. Qd3 {[%clk 0:03:02]} 9... Be7 {[%clk
0:02:47.4]} 10. O-O {[%clk 0:02:59.7]} 10... O-O {[%clk 0:02:47.1]} 11. f4
{[%clk 0:02:59.5]} 11... d6 {[%clk 0:02:47.5]} 12. b4 {[%clk 0:02:59.5]} 12...
Nc6 {[%clk 0:02:42.5]} 13. Bb2 {[%clk 0:02:48.4]} 13... Rac8 {[%clk 0:02:34.8]}
14. Rac1 {[%clk 0:02:42.5]} 14... Rfd8 {[%clk 0:02:33.6]} 15. Nd5 {[%clk
0:02:37.5]} 15... exd5 {[%clk 0:01:55.4]} 16. cxd5 {[%clk 0:02:37.2]} 16... Nxb4
{[%clk 0:01:41]} 17. axb4 {[%clk 0:02:26.1]} 17... Qd7 {[%clk 0:01:41.6]} 18.
Nf5 {[%clk 0:02:12.5]} 18... Rxc1 {[%clk 0:00:25.6]} 19. Rxc1 {[%clk 0:02:10.7]}
19... Re8 {[%clk 0:00:25.5]} 20. Bf3 {[%clk 0:01:28.3]} 20... h6 {[%clk
0:00:15.9]} 21. Rd1 {[%clk 0:00:54.9]} 21... Bc8 {[%clk 0:00:07.1]} 22. g4
{[%clk 0:00:47.5]} 22... Qa4 {[%clk 0:00:05.6]} 23. e5 {[%clk 0:00:29.1]} 23...
Bxf5 {[%clk 0:00:03.4]} 24. gxf5 {[%clk 0:00:28.5]} 24... Nh7 {[%clk 0:00:02.9]}
25. f6 {[%clk 0:00:19.8]} 25... Bxf6 {[%clk 0:00:03.3]} 26. exf6 {[%clk
0:00:18.9]} 26... Qxb4 {[%clk 0:00:04.2]} 27. Qd4 {[%clk 0:00:15.8]} 27... Qxd4+
{[%clk 0:00:02.4]} 28. Bxd4 {[%clk 0:00:15.5]} 28... Nxf6 {[%clk 0:00:03.1]} 29.
Bxb6 {[%clk 0:00:15.5]} 29... Rb8 {[%clk 0:00:01.8]} 30. Bc7 {[%clk 0:00:15.2]}
30... Rb3 {[%clk 0:00:02.1]} 31. Kg2 {[%clk 0:00:15.1]} 31... Rb2+ {[%clk
0:00:02.2]} 32. Kg3 {[%clk 0:00:15.5]} 32... h5 {[%clk 0:00:02.3]} 33. Bxd6
{[%clk 0:00:14.3]} 33... h4+ {[%clk 0:00:03.2]} 34. Kxh4 {[%clk 0:00:14.7]}
34... Rxh2+ {[%clk 0:00:02.7]} 35. Kg3 {[%clk 0:00:15.2]} 35... Rb2 {[%clk
0:00:03.2]} 36. Be7 {[%clk 0:00:14.4]} 36... Nd7 {[%clk 0:00:02.5]} 37. d6
{[%clk 0:00:14.9]} 37... f6 {[%clk 0:00:02.8]} 38. Bd5+ {[%clk 0:00:14.4]} 38...
Kh7 {[%clk 0:00:03.3]} 39. Bf7 {[%clk 0:00:13.7]} 39... g5 {[%clk 0:00:02.5]}
40. fxg5 {[%clk 0:00:12.6]} 40... Kg7 {[%clk 0:00:02.5]} 41. Be6 {[%clk
0:00:12.6]} 1-0

[Event "*** Titled Tuesday Blitz"]
[Site "Chess.com"]
[Date "2021.03.02"]
[Round "5"]
[White "CrazyMartian"]
[Black "Mihnea2017"]
[Result "1-0"]
[WhiteElo "2293"]
[BlackElo "2442"]
[TimeControl "180+1"]
[EndTime "10:55:37 PST"]
[Termination "CrazyMartian won on time"]

1. d4 {[%clk 0:03:00.9]} 1... Nf6 {[%clk 0:03:00.2]} 2. Bf4 {[%clk 0:02:54.1]}
2... e6 {[%clk 0:02:59.5]} 3. e3 {[%clk 0:02:54.2]} 3... d5 {[%clk 0:02:59.4]}
4. Nd2 {[%clk 0:02:53.8]} 4... Bd6 {[%clk 0:02:59.1]} 5. Bg3 {[%clk 0:02:52.3]}
5... b6 {[%clk 0:02:55.8]} 6. Ngf3 {[%clk 0:02:51.5]} 6... Bb7 {[%clk
0:02:55.2]} 7. Bd3 {[%clk 0:02:48.3]} 7... Ne4 {[%clk 0:02:53.9]} 8. c3 {[%clk
0:02:38.4]} 8... Nd7 {[%clk 0:02:49.5]} 9. Qb1 {[%clk 0:02:35.2]} 9... Ndf6
{[%clk 0:02:37.7]} 10. a4 {[%clk 0:02:21.4]} 10... O-O {[%clk 0:02:19.3]} 11. a5
{[%clk 0:02:18.5]} 11... c5 {[%clk 0:02:19.3]} 12. Bxd6 {[%clk 0:02:04.7]} 12...
Qxd6 {[%clk 0:02:17.8]} 13. O-O {[%clk 0:02:02.3]} 13... Qc7 {[%clk 0:02:08.6]}
14. a6 {[%clk 0:01:43]} 14... Bc6 {[%clk 0:02:07.9]} 15. Qd1 {[%clk 0:01:39.5]}
15... Nxd2 {[%clk 0:02:00.5]} 16. Qxd2 {[%clk 0:01:35.3]} 16... Nd7 {[%clk
0:01:57.8]} 17. Rfc1 {[%clk 0:01:27.2]} 17... e5 {[%clk 0:01:56.7]} 18. dxe5
{[%clk 0:01:25.4]} 18... Nxe5 {[%clk 0:01:56.9]} 19. Nxe5 {[%clk 0:01:19.3]}
19... Qxe5 {[%clk 0:01:57.8]} 20. Bf1 {[%clk 0:01:18.2]} 20... Rad8 {[%clk
0:01:56.6]} 21. Re1 {[%clk 0:01:16.4]} 21... Rfe8 {[%clk 0:01:54.4]} 22. g3
{[%clk 0:01:14.5]} 22... h5 {[%clk 0:01:36.9]} 23. Bg2 {[%clk 0:01:09.9]} 23...
h4 {[%clk 0:01:35.4]} 24. b4 {[%clk 0:01:05.5]} 24... Ba8 {[%clk 0:00:47.6]} 25.
bxc5 {[%clk 0:01:03.9]} 25... bxc5 {[%clk 0:00:47.4]} 26. Rab1 {[%clk
0:01:02.9]} 26... Rd6 {[%clk 0:00:44]} 27. Red1 {[%clk 0:00:50.4]} 27... h3
{[%clk 0:00:37.6]} 28. Bxh3 {[%clk 0:00:41.5]} 28... Rxa6 {[%clk 0:00:36.7]} 29.
Bg2 {[%clk 0:00:38.4]} 29... Rd6 {[%clk 0:00:36.6]} 30. Rb5 {[%clk 0:00:33]}
30... Rc8 {[%clk 0:00:33.3]} 31. Ra5 {[%clk 0:00:32.2]} 31... Rc7 {[%clk
0:00:30.1]} 32. Qb2 {[%clk 0:00:24.2]} 32... Rb6 {[%clk 0:00:24.6]} 33. Qa3
{[%clk 0:00:22.8]} 33... Qe7 {[%clk 0:00:11.4]} 34. c4 {[%clk 0:00:15.7]} 34...
Rb4 {[%clk 0:00:04.3]} 35. cxd5 {[%clk 0:00:12.2]} 35... Rcb7 {[%clk 0:00:03.2]}
36. d6 {[%clk 0:00:11.4]} 36... Qd7 {[%clk 0:00:02.8]} 37. Rxc5 {[%clk 0:00:08]}
37... Rb1 {[%clk 0:00:02.7]} 38. Rcc1 {[%clk 0:00:07.3]} 38... Rxc1 {[%clk
0:00:01]} 39. Qxc1 {[%clk 0:00:07.5]} 1-0

[Event "*** Titled Tuesday Blitz"]
[Site "Chess.com"]
[Date "2021.03.02"]
[Round "5"]
[White "Nuvas"]
[Black "KroshkaKami"]
[Result "1-0"]
[WhiteElo "2547"]
[BlackElo "2343"]
[TimeControl "180+1"]
[EndTime "10:55:39 PST"]
[Termination "Nuvas won by resignation"]

1. d4 {[%clk 0:03:00.9]} 1... g6 {[%clk 0:01:51]} 2. c4 {[%clk 0:02:57.1]} 2...
Bg7 {[%clk 0:01:51.1]} 3. Nc3 {[%clk 0:02:57.8]} 3... d6 {[%clk 0:01:51.5]} 4.
g3 {[%clk 0:02:53.7]} 4... Nf6 {[%clk 0:01:51.6]} 5. Bg2 {[%clk 0:02:53.4]} 5...
O-O {[%clk 0:01:52.5]} 6. Nf3 {[%clk 0:02:54]} 6... c6 {[%clk 0:01:53.4]} 7. O-O
{[%clk 0:02:53.6]} 7... Nbd7 {[%clk 0:01:53.9]} 8. e4 {[%clk 0:02:53.5]} 8... e5
{[%clk 0:01:54.4]} 9. h3 {[%clk 0:02:50.2]} 9... Qe7 {[%clk 0:01:54.4]} 10. Be3
{[%clk 0:02:45.5]} 10... h6 {[%clk 0:01:54.5]} 11. Qd2 {[%clk 0:02:37.3]} 11...
Kh7 {[%clk 0:01:53.7]} 12. Rfe1 {[%clk 0:02:37.9]} 12... a5 {[%clk 0:01:50.3]}
13. Rad1 {[%clk 0:02:33.8]} 13... a4 {[%clk 0:01:47]} 14. c5 {[%clk 0:02:01.4]}
14... exd4 {[%clk 0:01:21.5]} 15. cxd6 {[%clk 0:02:01.1]} 15... dxc3 {[%clk
0:01:15.2]} 16. dxe7 {[%clk 0:02:00.8]} 16... cxd2 {[%clk 0:01:12.8]} 17.
exf8=N+ {[%clk 0:01:59.6]} 17... Nxf8 {[%clk 0:01:13.7]} 18. Nxd2 {[%clk
0:01:58.8]} 18... Be6 {[%clk 0:01:12.6]} 19. e5 {[%clk 0:01:33.8]} 19... Nd5
{[%clk 0:01:09.3]} 20. Bc5 {[%clk 0:01:22.9]} 20... Nd7 {[%clk 0:01:06.8]} 21.
Bd6 {[%clk 0:01:23.4]} 21... a3 {[%clk 0:00:57.1]} 22. Bxd5 {[%clk 0:01:14.9]}
22... Bxd5 {[%clk 0:00:55.5]} 23. b3 {[%clk 0:01:10.4]} 23... h5 {[%clk
0:00:29.2]} 24. Nb1 {[%clk 0:01:09.5]} 24... h4 {[%clk 0:00:26.9]} 25. Nxa3
{[%clk 0:01:02.4]} 25... hxg3 {[%clk 0:00:21.1]} 26. fxg3 {[%clk 0:01:03.3]}
26... b5 {[%clk 0:00:19]} 27. Rd2 {[%clk 0:00:49]} 27... Re8 {[%clk 0:00:18.4]}
28. Nxb5 {[%clk 0:00:47.9]} 28... Nxe5 {[%clk 0:00:15.1]} 29. Bxe5 {[%clk
0:00:29.2]} 29... Bxe5 {[%clk 0:00:16]} 30. Rde2 {[%clk 0:00:16.8]} 30... f6
{[%clk 0:00:13.4]} 31. Nc7 {[%clk 0:00:16.5]} 31... Rd8 {[%clk 0:00:08.9]} 32.
Nxd5 {[%clk 0:00:16]} 32... Rxd5 {[%clk 0:00:09.8]} 33. Kh2 {[%clk 0:00:14.7]}
33... Rd3 {[%clk 0:00:08.6]} 34. Re3 {[%clk 0:00:15.2]} 34... Rd2+ {[%clk
0:00:07.7]} 35. R1e2 {[%clk 0:00:15.9]} 35... Rd1 {[%clk 0:00:08]} 36. a4 {[%clk
0:00:16.1]} 36... Ra1 {[%clk 0:00:08.4]} 37. Kg2 {[%clk 0:00:15.6]} 37... Ra3
{[%clk 0:00:07.7]} 38. Kf3 {[%clk 0:00:14.4]} 38... Ra1 {[%clk 0:00:07.7]} 39.
Rxe5 {[%clk 0:00:13.8]} 39... fxe5 {[%clk 0:00:07.5]} 40. Rxe5 {[%clk
0:00:14.7]} 40... Ra3 {[%clk 0:00:07.7]} 41. Re3 {[%clk 0:00:15.2]} 41... Kg7
{[%clk 0:00:08.1]} 42. Ke4 {[%clk 0:00:15.3]} 42... Kf6 {[%clk 0:00:07.8]} 43.
Kd4 {[%clk 0:00:15.7]} 43... Ra1 {[%clk 0:00:07.5]} 44. Rc3 {[%clk 0:00:15.8]}
44... Rc1 {[%clk 0:00:08.4]} 45. Rxc1 {[%clk 0:00:15.8]} 1-0